[Event "Live Chess"]
[Site "Chess.com"]
[Date "2023.05.21"]
[Round "-"]
[White "mirandaasilva"]
[Black "MaximKhimchenko"]
[Result "0-1"]
[WhiteElo "1654"]
[BlackElo "1380"]
[TimeControl "300"]
[EndTime "22:45:02 PDT"]
[Termination "MaximKhimchenko won by checkmate"]

1. e4 {[%clk 0:04:57.9]} 1... c5 {[%clk 0:04:59]} 2. Nc3 {[%clk 0:04:54.6]} 2...
Nf6 {[%clk 0:04:57.6]} 3. Nge2 {[%clk 0:04:52.1]} 3... Nc6 {[%clk 0:04:56.2]} 4.
d4 {[%clk 0:04:49.9]} 4... cxd4 {[%clk 0:04:55.2]} 5. Nxd4 {[%clk 0:04:49.8]}
5... d6 {[%clk 0:04:54.2]} 6. Nxc6 {[%clk 0:04:47.1]} 6... bxc6 {[%clk
0:04:53.2]} 7. Bd3 {[%clk 0:04:47]} 7... g6 {[%clk 0:04:51.4]} 8. Bg5 {[%clk
0:04:45.3]} 8... Bg7 {[%clk 0:04:50.8]} 9. Qd2 {[%clk 0:04:44.3]} 9... O-O
{[%clk 0:04:49.4]} 10. h4 {[%clk 0:04:43.3]} 10... Nh5 {[%clk 0:04:46.8]} 11.
O-O-O {[%clk 0:04:35.5]} 11... Rb8 {[%clk 0:04:43.1]} 12. Bh6 {[%clk 0:04:28.8]}
12... Qa5 {[%clk 0:04:35.5]} 13. Bxg7 {[%clk 0:04:25.4]} 13... Kxg7 {[%clk
0:04:24.8]} 14. g4 {[%clk 0:04:22]} 14... Bxg4 {[%clk 0:04:22.6]} 15. Rdg1
{[%clk 0:04:18.7]} 15... Be6 {[%clk 0:04:20.1]} 16. f4 {[%clk 0:04:13.1]} 16...
Bxa2 {[%clk 0:04:08.9]} 17. Rg5 {[%clk 0:03:53.3]} 17... Qb4 {[%clk 0:03:49.3]}
18. Nd1 {[%clk 0:02:52.9]} 18... Qxd2+ {[%clk 0:03:40.8]} 19. Kxd2 {[%clk
0:02:52.8]} 19... Nxf4 {[%clk 0:03:40]} 20. h5 {[%clk 0:02:46.9]} 20... Nxd3
{[%clk 0:03:38]} 21. Kxd3 {[%clk 0:02:43.5]} 21... Be6 {[%clk 0:03:32.8]} 22.
hxg6 {[%clk 0:02:41.5]} 22... fxg6 {[%clk 0:03:31.3]} 23. Ne3 {[%clk 0:02:37.4]}
23... Rxb2 {[%clk 0:03:25.6]} 24. Ng4 {[%clk 0:02:35.5]} 24... Bxg4 {[%clk
0:03:24]} 25. Rxg4 {[%clk 0:02:35.4]} 25... Rf2 {[%clk 0:03:23]} 26. Kc3 {[%clk
0:02:34.6]} 26... Rfxc2+ {[%clk 0:03:21.2]} 27. Kd3 {[%clk 0:02:34.5]} 27...
Rd2+ {[%clk 0:03:20.6]} 28. Kc3 {[%clk 0:02:33.5]} 28... Rbc2+ {[%clk
0:03:19.6]} 29. Kb3 {[%clk 0:02:31.8]} 29... c5 {[%clk 0:03:18.3]} 30. Rgh4
{[%clk 0:02:30.4]} 30... h5 {[%clk 0:03:16.5]} 31. R4h3 {[%clk 0:02:29.7]} 31...
a5 {[%clk 0:03:13.8]} 32. Ra1 {[%clk 0:02:27.5]} 32... Rb2+ {[%clk 0:03:12.8]}
33. Kc3 {[%clk 0:02:24.6]} 33... Rdc2+ {[%clk 0:03:10.8]} 34. Kd3 {[%clk
0:02:22.7]} 34... Rb3+ {[%clk 0:03:09]} 35. Kxc2 {[%clk 0:02:22.2]} 35... Rxh3
{[%clk 0:03:08.9]} 36. Rxa5 {[%clk 0:02:21.1]} 36... Re3 {[%clk 0:03:07.8]} 37.
Ra4 {[%clk 0:02:19.3]} 37... Kf6 {[%clk 0:03:06.7]} 38. Kd2 {[%clk 0:02:19.2]}
38... Rg3 {[%clk 0:03:03.2]} 39. Ra7 {[%clk 0:02:19.1]} 39... Rg4 {[%clk
0:03:01.8]} 40. Ke3 {[%clk 0:02:18.5]} 40... h4 {[%clk 0:02:57.6]} 41. Kf3
{[%clk 0:02:17.7]} 41... Rg5 {[%clk 0:02:54.5]} 42. Ra1 {[%clk 0:02:16.5]} 42...
Ke5 {[%clk 0:02:50.1]} 43. Rh1 {[%clk 0:02:16.4]} 43... Rg3+ {[%clk 0:02:47.4]}
44. Kf2 {[%clk 0:02:16.3]} 44... Rg4 {[%clk 0:02:43.8]} 45. Kf1 {[%clk
0:02:12.5]} 45... Rxe4 {[%clk 0:02:42.9]} 46. Rh2 {[%clk 0:02:12.4]} 46... g5
{[%clk 0:02:41.2]} 47. Rg2 {[%clk 0:02:10.8]} 47... Kf5 {[%clk 0:02:38.2]} 48.
Rc2 {[%clk 0:02:10.7]} 48... g4 {[%clk 0:02:36.9]} 49. Rf2+ {[%clk 0:02:10.2]}
49... Rf4 {[%clk 0:02:35.8]} 50. Kg1 {[%clk 0:02:08.4]} 50... Rxf2 {[%clk
0:02:34.8]} 51. Kh1 {[%clk 0:02:08.3]} 51... c4 {[%clk 0:02:33.3]} 52. Kg1
{[%clk 0:02:07.3]} 52... g3 {[%clk 0:02:31.6]} 53. Kh1 {[%clk 0:02:07.2]} 53...
c3 {[%clk 0:02:29]} 54. Kg1 {[%clk 0:02:07.1]} 54... c2 {[%clk 0:02:28.3]} 55.
Kh1 {[%clk 0:02:06.1]} 55... c1=R# {[%clk 0:02:26.4]} 0-1

[Event "Live Chess"]
[Site "Chess.com"]
[Date "2023.05.21"]
[Round "-"]
[White "Hacker_2009"]
[Black "Shepherds_Pie"]
[Result "1/2-1/2"]
[WhiteElo "1944"]
[BlackElo "1923"]
[TimeControl "300"]
[EndTime "22:46:26 PDT"]
[Termination "Game drawn by agreement"]

1. d4 {[%clk 0:04:57.4]} 1... d5 {[%clk 0:04:46.7]} 2. Nf3 {[%clk 0:04:55.9]}
2... Nf6 {[%clk 0:04:41.6]} 3. e3 {[%clk 0:04:54.7]} 3... g6 {[%clk 0:04:36]} 4.
c4 {[%clk 0:04:50.4]} 4... Bg7 {[%clk 0:04:34.1]} 5. Nc3 {[%clk 0:04:48.8]} 5...
O-O {[%clk 0:04:32.4]} 6. Be2 {[%clk 0:04:46.9]} 6... c5 {[%clk 0:04:31.3]} 7.
O-O {[%clk 0:04:44.6]} 7... dxc4 {[%clk 0:04:29]} 8. Bxc4 {[%clk 0:04:43.2]}
8... Nc6 {[%clk 0:04:26.6]} 9. dxc5 {[%clk 0:04:38.5]} 9... Qa5 {[%clk
0:04:24.7]} 10. Rb1 {[%clk 0:04:21]} 10... Qxc5 {[%clk 0:04:21.4]} 11. b3 {[%clk
0:04:19.6]} 11... Rd8 {[%clk 0:04:16.1]} 12. Qe2 {[%clk 0:04:17.2]} 12... Bg4
{[%clk 0:04:10.7]} 13. Bb2 {[%clk 0:04:15.6]} 13... e6 {[%clk 0:04:07.8]} 14. h3
{[%clk 0:04:12.6]} 14... Bxf3 {[%clk 0:04:05.5]} 15. Qxf3 {[%clk 0:04:10.6]}
15... Ne5 {[%clk 0:04:04.4]} 16. Qe2 {[%clk 0:04:08]} 16... Nxc4 {[%clk
0:04:02.3]} 17. Qxc4 {[%clk 0:04:07]} 17... Qxc4 {[%clk 0:04:00.7]} 18. bxc4
{[%clk 0:04:06.9]} 18... Rac8 {[%clk 0:03:58.8]} 19. Nb5 {[%clk 0:04:03]} 19...
a6 {[%clk 0:03:56.5]} 20. Nd4 {[%clk 0:04:01.4]} 20... e5 {[%clk 0:03:51.4]} 21.
Nf3 {[%clk 0:03:59.4]} 21... e4 {[%clk 0:03:49.5]} 22. Nd4 {[%clk 0:03:58.1]}
22... Rxc4 {[%clk 0:03:43.9]} 23. Rfc1 {[%clk 0:03:57]} 23... Rxc1+ {[%clk
0:03:41.4]} 24. Rxc1 {[%clk 0:03:55.9]} 24... Nd5 {[%clk 0:03:37.6]} 25. a3
{[%clk 0:03:46.3]} 25... h5 {[%clk 0:03:28.5]} 26. Rc5 {[%clk 0:03:43]} 26...
Rd7 {[%clk 0:03:24.5]} 1/2-1/2

[Event "Live Chess"]
[Site "Chess.com"]
[Date "2023.05.21"]
[Round "-"]
[White "Singapourfeuj"]
[Black "LaupMiths"]
[Result "1-0"]
[WhiteElo "2207"]
[BlackElo "1803"]
[TimeControl "300"]
[EndTime "22:46:35 PDT"]
[Termination "Singapourfeuj won by resignation"]

1. d4 {[%clk 0:04:57.5]} 1... d5 {[%clk 0:04:57.8]} 2. Nf3 {[%clk 0:04:56.5]}
2... e6 {[%clk 0:04:56.6]} 3. c4 {[%clk 0:04:55.3]} 3... c5 {[%clk 0:04:54.5]}
4. cxd5 {[%clk 0:04:54.1]} 4... exd5 {[%clk 0:04:53]} 5. Nc3 {[%clk 0:04:52]}
5... Nc6 {[%clk 0:04:49.8]} 6. e3 {[%clk 0:04:50.9]} 6... Nf6 {[%clk 0:04:46.8]}
7. Be2 {[%clk 0:04:50]} 7... a6 {[%clk 0:04:40.3]} 8. O-O {[%clk 0:04:48.5]}
8... Bg4 {[%clk 0:04:35]} 9. dxc5 {[%clk 0:04:46.5]} 9... Bxc5 {[%clk
0:04:33.1]} 10. h3 {[%clk 0:04:45.9]} 10... Bh5 {[%clk 0:04:31.4]} 11. a3 {[%clk
0:04:43.4]} 11... O-O {[%clk 0:04:28.5]} 12. b4 {[%clk 0:04:42.1]} 12... Bb6
{[%clk 0:04:24.9]} 13. Bb2 {[%clk 0:04:41.3]} 13... Ne4 {[%clk 0:04:18.6]} 14.
Na4 {[%clk 0:04:37.1]} 14... Bc7 {[%clk 0:04:15.1]} 15. Nc5 {[%clk 0:04:32.5]}
15... Qd6 {[%clk 0:04:09.6]} 16. Nxb7 {[%clk 0:04:28.4]} 16... Qg6 {[%clk
0:04:03.4]} 17. Qxd5 {[%clk 0:04:21.7]} 17... Rab8 {[%clk 0:03:18.8]} 18. Nc5
{[%clk 0:04:19.8]} 18... Rbd8 {[%clk 0:03:13.1]} 19. Qxe4 {[%clk 0:04:18.3]}
19... Qxe4 {[%clk 0:03:07.3]} 20. Nxe4 {[%clk 0:04:17]} 20... Rfe8 {[%clk
0:03:06.7]} 21. Nc5 {[%clk 0:04:12.4]} 21... Ne5 {[%clk 0:02:52.7]} 22. Bxe5
{[%clk 0:04:09.4]} 22... Bxe5 {[%clk 0:02:51.6]} 23. Rad1 {[%clk 0:04:08.1]}
23... Bb2 {[%clk 0:02:46.8]} 24. a4 {[%clk 0:04:04]} 24... Ba3 {[%clk
0:02:43.9]} 25. Nd3 {[%clk 0:04:01.2]} 25... Bg6 {[%clk 0:02:34.8]} 26. b5
{[%clk 0:03:53.2]} 26... axb5 {[%clk 0:02:30.8]} 27. axb5 {[%clk 0:03:52.3]}
27... Rd5 {[%clk 0:02:25]} 28. Nf4 {[%clk 0:03:49.7]} 28... Rxd1 {[%clk
0:02:19.2]} 29. Rxd1 {[%clk 0:03:48.5]} 29... Be4 {[%clk 0:02:14.7]} 30. Nd4
{[%clk 0:03:44.2]} 30... Bd6 {[%clk 0:02:08.9]} 31. Bf3 {[%clk 0:03:41.9]} 31...
g5 {[%clk 0:01:57]} 32. Bxe4 {[%clk 0:03:38.1]} 32... gxf4 {[%clk 0:01:55.2]}
33. Nf5 {[%clk 0:03:32]} 33... Bc7 {[%clk 0:01:50.6]} 34. Bc6 {[%clk 0:03:29.5]}
34... Rb8 {[%clk 0:01:43.6]} 35. Ne7+ {[%clk 0:03:26.3]} 35... Kg7 {[%clk
0:01:41.2]} 36. Nd5 {[%clk 0:03:25.2]} 36... Be5 {[%clk 0:01:36.6]} 37. exf4
{[%clk 0:03:23.8]} 1-0

[Event "Live Chess"]
[Site "Chess.com"]
[Date "2023.05.21"]
[Round "-"]
[White "BillythekidFellowes"]
[Black "OleksiyJr1"]
[Result "1-0"]
[WhiteElo "2032"]
[BlackElo "961"]
[TimeControl "300"]
[EndTime "22:46:43 PDT"]
[Termination "BillythekidFellowes won - game abandoned"]

1. e4 {[%clk 0:04:58.3]} 1... c5 {[%clk 0:04:58.2]} 2. Nf3 {[%clk 0:04:58.2]}
2... Nc6 {[%clk 0:04:57.2]} 3. Nc3 {[%clk 0:04:54.9]} 3... d6 {[%clk 0:04:56.8]}
4. d4 {[%clk 0:04:53.1]} 4... cxd4 {[%clk 0:04:56.7]} 5. Nxd4 {[%clk 0:04:53]}
5... Nf6 {[%clk 0:04:55.6]} 6. Bb5 {[%clk 0:04:52]} 6... Bd7 {[%clk 0:04:53.1]}
7. O-O {[%clk 0:04:49.8]} 7... a6 {[%clk 0:04:52.3]} 8. Nxc6 {[%clk 0:04:48]}
8... Bxc6 {[%clk 0:04:52.2]} 9. Bxc6+ {[%clk 0:04:47.2]} 9... bxc6 {[%clk
0:04:51.6]} 10. Be3 {[%clk 0:04:45.3]} 10... e5 {[%clk 0:04:50]} 11. f4 {[%clk
0:04:43.9]} 11... Be7 {[%clk 0:04:44.3]} 12. fxe5 {[%clk 0:04:38.1]} 12... dxe5
{[%clk 0:04:43.1]} 13. Rf5 {[%clk 0:04:37.5]} 13... O-O {[%clk 0:04:36.2]} 14.
Rxe5 {[%clk 0:04:30.5]} 14... Bb4 {[%clk 0:04:31.9]} 15. Bc5 {[%clk 0:04:23.4]}
1-0

[Event "Live Chess"]
[Site "Chess.com"]
[Date "2023.05.21"]
[Round "-"]
[White "profpirate4"]
[Black "Bakunian2022"]
[Result "1-0"]
[WhiteElo "1206"]
[BlackElo "760"]
[TimeControl "300"]
[EndTime "22:46:57 PDT"]
[Termination "profpirate4 won by resignation"]

1. d4 {[%clk 0:04:57.3]} 1... d5 {[%clk 0:04:58.7]} 2. c4 {[%clk 0:04:55.2]}
2... dxc4 {[%clk 0:04:52.6]} 3. e4 {[%clk 0:04:48.4]} 3... e6 {[%clk 0:04:48.2]}
4. Bxc4 {[%clk 0:04:46.8]} 4... Nf6 {[%clk 0:04:42.6]} 5. e5 {[%clk 0:04:45]}
5... Nd5 {[%clk 0:04:39.5]} 6. Nc3 {[%clk 0:04:44.2]} 6... Nxc3 {[%clk
0:04:36.1]} 7. bxc3 {[%clk 0:04:43]} 7... c6 {[%clk 0:04:33.7]} 8. Nf3 {[%clk
0:04:40.9]} 8... b5 {[%clk 0:04:20.6]} 9. Bb3 {[%clk 0:04:39.4]} 9... a5 {[%clk
0:04:12.9]} 10. O-O {[%clk 0:04:36.4]} 10... a4 {[%clk 0:04:11.6]} 11. Bc2
{[%clk 0:04:35.1]} 11... Ba6 {[%clk 0:04:03.2]} 12. Re1 {[%clk 0:04:29.9]} 12...
Be7 {[%clk 0:03:54.5]} 13. Qd3 {[%clk 0:04:16.6]} 13... g6 {[%clk 0:03:37.7]}
14. Bh6 {[%clk 0:04:12.1]} 14... b4 {[%clk 0:03:12.8]} 15. Qd2 {[%clk
0:04:09.7]} 15... bxc3 {[%clk 0:03:06.3]} 16. Qxc3 {[%clk 0:04:07.3]} 16... Bb5
{[%clk 0:03:01.7]} 17. Bd3 {[%clk 0:03:59.7]} 17... Na6 {[%clk 0:02:53.1]} 18.
Reb1 {[%clk 0:03:44]} 18... Nc7 {[%clk 0:02:34.7]} 19. Nd2 {[%clk 0:03:35.8]}
19... Nd5 {[%clk 0:02:26.4]} 20. Qc1 {[%clk 0:03:28.2]} 20... Bg5 {[%clk
0:02:11]} 21. Bxb5 {[%clk 0:03:17.7]} 21... cxb5 {[%clk 0:01:59.7]} 22. Qc6+
{[%clk 0:03:15.8]} 22... Ke7 {[%clk 0:01:49.4]} 23. Bxg5+ {[%clk 0:03:11.6]} 1-0

[Event "Live Chess"]
[Site "Chess.com"]
[Date "2023.05.21"]
[Round "-"]
[White "YrrriKharkiv"]
[Black "Conradical12"]
[Result "1-0"]
[WhiteElo "2015"]
[BlackElo "1626"]
[TimeControl "300"]
[EndTime "22:48:49 PDT"]
[Termination "YrrriKharkiv won by resignation"]

1. d4 {[%clk 0:04:57.3]} 1... Nf6 {[%clk 0:04:55.9]} 2. Bf4 {[%clk 0:04:54.8]}
2... d6 {[%clk 0:04:53.1]} 3. e3 {[%clk 0:04:53.6]} 3... Nc6 {[%clk 0:04:48.9]}
4. Nf3 {[%clk 0:04:52]} 4... g6 {[%clk 0:04:42.8]} 5. c3 {[%clk 0:04:49.7]} 5...
Bg7 {[%clk 0:04:42.2]} 6. Nbd2 {[%clk 0:04:48]} 6... e5 {[%clk 0:04:41.6]} 7.
Bg3 {[%clk 0:04:45.8]} 7... O-O {[%clk 0:04:39.7]} 8. Bb5 {[%clk 0:04:41.2]}
8... Bd7 {[%clk 0:04:36.4]} 9. d5 {[%clk 0:04:32.2]} 9... Nxd5 {[%clk
0:04:31.5]} 10. e4 {[%clk 0:04:27.3]} 10... Nf6 {[%clk 0:04:27.9]} 11. O-O
{[%clk 0:04:23.7]} 11... a6 {[%clk 0:04:22.6]} 12. Ba4 {[%clk 0:04:21]} 12... b5
{[%clk 0:04:14]} 13. Bc2 {[%clk 0:04:19.5]} 13... Nh5 {[%clk 0:04:04.4]} 14. a4
{[%clk 0:04:05.9]} 14... f5 {[%clk 0:03:58.5]} 15. exf5 {[%clk 0:04:04.7]} 15...
gxf5 {[%clk 0:03:56.2]} 16. h3 {[%clk 0:04:03.1]} 16... Qe7 {[%clk 0:03:43.7]}
17. Nxe5 {[%clk 0:03:43]} 17... dxe5 {[%clk 0:03:32.7]} 18. Qxh5 {[%clk
0:03:40.8]} 18... Rf6 {[%clk 0:03:25.8]} 19. Bh4 {[%clk 0:03:31.7]} 19... Raf8
{[%clk 0:03:18.3]} 20. axb5 {[%clk 0:03:28.3]} 20... axb5 {[%clk 0:03:14.8]} 21.
Bxf6 {[%clk 0:03:15.2]} 21... Rxf6 {[%clk 0:03:11.9]} 22. Bb3+ {[%clk
0:03:09.8]} 22... Kh8 {[%clk 0:03:06]} 23. Ra8+ {[%clk 0:03:09.1]} 23... Nd8
{[%clk 0:03:03]} 24. Rd1 {[%clk 0:02:54.4]} 24... Rg6 {[%clk 0:03:01.2]} 25. Nf1
{[%clk 0:02:46.8]} 25... Bf8 {[%clk 0:02:28.2]} 26. Rxd8 {[%clk 0:02:27.1]}
26... Qxd8 {[%clk 0:02:22]} 27. Qxf5 {[%clk 0:02:24.8]} 27... Bxf5 {[%clk
0:02:03.8]} 28. Rxd8 {[%clk 0:02:22.6]} 28... Be4 {[%clk 0:02:03.7]} 29. Rxf8+
{[%clk 0:02:20.5]} 29... Kg7 {[%clk 0:02:03.3]} 30. Rg8+ {[%clk 0:02:19.7]} 1-0

[Event "Live Chess"]
[Site "Chess.com"]
[Date "2023.05.21"]
[Round "-"]
[White "Biranidun"]
[Black "Tushinskiy"]
[Result "1-0"]
[WhiteElo "2553"]
[BlackElo "2203"]
[TimeControl "300"]
[EndTime "22:48:50 PDT"]
[Termination "Biranidun won by resignation"]

1. e4 {[%clk 0:04:59.1]} 1... e5 {[%clk 0:04:57.4]} 2. Nf3 {[%clk 0:04:58.3]}
2... d6 {[%clk 0:04:56.6]} 3. Nc3 {[%clk 0:04:57.6]} 3... Bg4 {[%clk 0:04:55.7]}
4. Bc4 {[%clk 0:04:56.1]} 4... Nf6 {[%clk 0:04:54.3]} 5. h3 {[%clk 0:04:55.4]}
5... Bh5 {[%clk 0:04:53.1]} 6. d3 {[%clk 0:04:48.6]} 6... Nbd7 {[%clk
0:04:51.7]} 7. Be3 {[%clk 0:04:43.5]} 7... Be7 {[%clk 0:04:50.1]} 8. g4 {[%clk
0:04:34.2]} 8... Bg6 {[%clk 0:04:48.1]} 9. Ne2 {[%clk 0:04:32.5]} 9... c6 {[%clk
0:04:46.4]} 10. Bb3 {[%clk 0:04:30.6]} 10... Qc7 {[%clk 0:04:43.7]} 11. Ng3
{[%clk 0:04:29.9]} 11... d5 {[%clk 0:04:42.6]} 12. Nh4 {[%clk 0:04:06.6]} 12...
dxe4 {[%clk 0:04:38.1]} 13. Nxg6 {[%clk 0:04:03]} 13... hxg6 {[%clk 0:04:36.2]}
14. dxe4 {[%clk 0:04:01.8]} 14... Nc5 {[%clk 0:04:33.9]} 15. Qf3 {[%clk
0:03:58.6]} 15... Nxb3 {[%clk 0:04:30.7]} 16. axb3 {[%clk 0:03:57.3]} 16... a5
{[%clk 0:04:26.5]} 17. Kf1 {[%clk 0:03:54]} 17... Nd7 {[%clk 0:04:19.3]} 18. Kg2
{[%clk 0:03:52.3]} 18... Nc5 {[%clk 0:04:18.2]} 19. Bxc5 {[%clk 0:03:50.5]}
19... Bxc5 {[%clk 0:04:16.8]} 20. h4 {[%clk 0:03:48.4]} 20... O-O-O {[%clk
0:04:08.8]} 21. h5 {[%clk 0:03:47]} 21... Rd2 {[%clk 0:04:06.4]} 22. Rhf1 {[%clk
0:03:36.8]} 22... gxh5 {[%clk 0:04:03.4]} 23. gxh5 {[%clk 0:03:26.9]} 23... Rxc2
{[%clk 0:03:56.5]} 24. Qg4+ {[%clk 0:03:19.1]} 24... Kb8 {[%clk 0:03:54.5]} 25.
Qxg7 {[%clk 0:03:18.1]} 25... Qd8 {[%clk 0:03:44.9]} 26. Qxe5+ {[%clk
0:02:59.8]} 26... Bd6 {[%clk 0:03:41.7]} 27. Qxa5 {[%clk 0:02:57.8]} 27... Qxa5
{[%clk 0:03:37]} 28. Rxa5 {[%clk 0:02:57.7]} 28... Rxb2 {[%clk 0:03:34.4]} 29.
Rfa1 {[%clk 0:02:45.2]} 29... Kc7 {[%clk 0:03:28.5]} 30. Rf5 {[%clk 0:02:43.9]}
30... Rh7 {[%clk 0:03:20.8]} 31. Rf3 {[%clk 0:02:37.6]} 31... Bxg3 {[%clk
0:03:17.2]} 32. Kxg3 {[%clk 0:02:36.4]} 32... Kb6 {[%clk 0:03:09.5]} 33. Rh1
{[%clk 0:02:32.4]} 33... Kc5 {[%clk 0:03:08.3]} 34. Kf4 {[%clk 0:02:25]} 34...
b5 {[%clk 0:03:02.7]} 35. h6 {[%clk 0:02:21.7]} 35... Kb4 {[%clk 0:03:00.3]} 36.
Rhh3 {[%clk 0:02:18.2]} 36... c5 {[%clk 0:02:57.3]} 37. Kg5 {[%clk 0:02:14.3]}
37... Re2 {[%clk 0:02:54.8]} 38. Kf5 {[%clk 0:02:08.6]} 38... c4 {[%clk
0:02:46.3]} 39. bxc4 {[%clk 0:02:08.5]} 39... bxc4 {[%clk 0:02:45.7]} 40. e5
{[%clk 0:02:08.3]} 40... Re1 {[%clk 0:02:29.3]} 41. Rf4 {[%clk 0:02:05.4]} 41...
Rc1 {[%clk 0:02:18.3]} 42. Rg4 {[%clk 0:01:58.2]} 42... Rc3 {[%clk 0:02:13.4]}
43. Rh2 {[%clk 0:01:15.8]} 43... Rf3+ {[%clk 0:02:04.5]} 44. Ke4 {[%clk
0:01:14.8]} 44... Ra3 {[%clk 0:01:56.8]} 45. Rg7 {[%clk 0:01:13.4]} 45... Rh8
{[%clk 0:01:54.8]} 46. Rxf7 {[%clk 0:01:12.8]} 46... c3 {[%clk 0:01:50.2]} 47.
Rb7+ {[%clk 0:01:09.1]} 47... Kc4 {[%clk 0:01:47.6]} 48. Rc7+ {[%clk 0:01:08.3]}
48... Kb3 {[%clk 0:01:46.2]} 49. f4 {[%clk 0:01:07.4]} 49... Ra4+ {[%clk
0:01:41.5]} 50. Ke3 {[%clk 0:01:06.6]} 50... Rf8 {[%clk 0:01:23.3]} 51. Rb7+
{[%clk 0:01:00.1]} 51... Ka3 {[%clk 0:01:15.4]} 52. h7 {[%clk 0:00:56.6]} 52...
Raxf4 {[%clk 0:01:10.9]} 53. h8=Q {[%clk 0:00:49.8]} 53... Rf3+ {[%clk
0:01:08.5]} 54. Ke2 {[%clk 0:00:43.2]} 54... Rf2+ {[%clk 0:00:59]} 55. Rxf2
{[%clk 0:00:41.4]} 55... Rxh8 {[%clk 0:00:58.9]} 56. Rf6 {[%clk 0:00:36.7]}
56... Rh2+ {[%clk 0:00:50.1]} 57. Kd3 {[%clk 0:00:36]} 57... Rh3+ {[%clk
0:00:45.9]} 58. Kc2 {[%clk 0:00:35.2]} 58... Rh2+ {[%clk 0:00:44.1]} 59. Kxc3
{[%clk 0:00:34.7]} 59... Rh3+ {[%clk 0:00:43.4]} 60. Kd4 {[%clk 0:00:34]} 1-0

[Event "Live Chess"]
[Site "Chess.com"]
[Date "2023.05.21"]
[Round "-"]
[White "Ocelot32"]
[Black "Nazar_777"]
[Result "1-0"]
[WhiteElo "1365"]
[BlackElo "1622"]
[TimeControl "300"]
[EndTime "22:49:07 PDT"]
[Termination "Ocelot32 won by checkmate"]

1. e4 {[%clk 0:04:57.3]} 1... e6 {[%clk 0:04:53.5]} 2. d4 {[%clk 0:04:54.2]}
2... a6 {[%clk 0:04:52.2]} 3. Nf3 {[%clk 0:04:51.8]} 3... h5 {[%clk 0:04:51.6]}
4. c4 {[%clk 0:04:49.1]} 4... c5 {[%clk 0:04:50.9]} 5. d5 {[%clk 0:04:47.8]}
5... Nf6 {[%clk 0:04:49.7]} 6. Nc3 {[%clk 0:04:46.2]} 6... Be7 {[%clk
0:04:48.3]} 7. e5 {[%clk 0:04:45]} 7... Ng8 {[%clk 0:04:47]} 8. d6 {[%clk
0:04:43.9]} 8... Bf8 {[%clk 0:04:46.2]} 9. Bd3 {[%clk 0:04:41.1]} 9... b6 {[%clk
0:04:45.2]} 10. O-O {[%clk 0:04:39]} 10... Bb7 {[%clk 0:04:44.2]} 11. Bg5 {[%clk
0:04:27.8]} 11... Qc8 {[%clk 0:04:42.2]} 12. Bh4 {[%clk 0:04:23.6]} 12... Nh6
{[%clk 0:04:40.5]} 13. Ng5 {[%clk 0:04:22.1]} 13... Nc6 {[%clk 0:04:38.3]} 14.
Nge4 {[%clk 0:04:05.6]} 14... Nxe5 {[%clk 0:04:34.5]} 15. Bg5 {[%clk 0:04:01]}
15... Qc6 {[%clk 0:04:22.5]} 16. Bxh6 {[%clk 0:03:59.6]} 16... gxh6 {[%clk
0:04:18.8]} 17. Nf6+ {[%clk 0:03:55]} 17... Kd8 {[%clk 0:04:17.3]} 18. f3 {[%clk
0:03:50.2]} 18... Nxd3 {[%clk 0:04:09.7]} 19. Qxd3 {[%clk 0:03:48.8]} 19... Bxd6
{[%clk 0:04:08.2]} 20. Rad1 {[%clk 0:03:43.4]} 20... Bxh2+ {[%clk 0:03:42.4]}
21. Kh1 {[%clk 0:03:36.9]} 21... d5 {[%clk 0:03:35.3]} 22. cxd5 {[%clk
0:03:31.4]} 22... exd5 {[%clk 0:03:33.2]} 23. Ncxd5 {[%clk 0:03:30.3]} 23... Kc8
{[%clk 0:03:25.1]} 24. Ne7+ {[%clk 0:03:27.9]} 24... Kb8 {[%clk 0:03:21.7]} 25.
Nxc6+ {[%clk 0:03:26.3]} 25... Bxc6 {[%clk 0:03:20.6]} 26. Nd7+ {[%clk
0:03:23.8]} 26... Kb7 {[%clk 0:03:16.3]} 27. Kxh2 {[%clk 0:03:21.5]} 27... Rad8
{[%clk 0:03:13.2]} 28. Qc3 {[%clk 0:03:03.2]} 28... Rhg8 {[%clk 0:02:57.5]} 29.
Ne5 {[%clk 0:02:54.2]} 29... Rd4 {[%clk 0:02:44.9]} 30. Rxd4 {[%clk 0:02:46.7]}
30... cxd4 {[%clk 0:02:43.6]} 31. Qxc6+ {[%clk 0:02:45.2]} 31... Ka7 {[%clk
0:02:41.5]} 32. Nd7 {[%clk 0:02:35]} 32... Rd8 {[%clk 0:02:32.4]} 33. Qxb6+
{[%clk 0:02:28.8]} 33... Ka8 {[%clk 0:02:30.8]} 34. Qxa6# {[%clk 0:02:23.6]} 1-0